bitfinex-derivatives/quotes_SOLF0:USTF0_20260203
["timestamp","ask_amount","ask_price","bid_price","bid_amount"]
[1770076800414,3.40401926,104.51,104.44,3.66767537]
[1770076803412,3.40401926,104.51,104.45,3.64058105]
[1770076804013,0.06150867,104.49,104.45,3.64058105]
[1770076805312,3.56262086,104.49,104.42,8.6264]
[1770076805515,3.56262086,104.49,104.43,3.64058105]
[1770076806010,3.48262901,104.48,104.43,12.26658105]
[1770076806221,0.0631327,104.47,104.44,3.64058105]
[1770076806418,3.48262901,104.5,104.44,3.64058105]
[1770076806618,3.48262901,104.5,104.44,3.70413328]
[1770076807212,3.48262901,104.5,104.46,3.64058105]
[1770076807917,3.48262901,104.5,104.46,12.26428105]
[1770076808110,3.48262901,104.5,104.43,134.1843]
[1770076808111,3.4766201,104.52,104.47,3.70100301]
[1770076808506,3.4766201,104.52,104.48,3.64058105]
[1770076810115,8.6172,104.55,104.48,8.6217]
[1770076810316,3.33973058,104.54,104.49,3.64058105]
[1770076810714,11.95543058,104.56,104.51,3.64058105]
[1770076811016,3.33973058,104.55,104.51,3.64058105]
[1770076811413,134.0028,104.58,104.5,8.68254911]
[1770076811414,8.6145,104.58,104.52,3.64058105]
[1770076811611,3.33973058,104.59,104.52,3.64058105]
[1770076812118,3.06250122,104.58,104.53,12.25858105]
[1770076812617,3.06250122,104.58,104.53,3.64058105]
[1770076812809,3.06250122,104.57,104.5,3.64058105]
[1770076813316,3.06250122,104.57,104.51,3.64058105]
[1770076813510,3.06250122,104.59,104.53,3.64058105]
[1770076813910,3.06250122,104.59,104.53,3.70811262]
[1770076814320,3.06250122,104.59,104.53,12.32591262]
[1770076815419,3.06250122,104.59,104.54,3.64058105]
[1770076816319,3.06250122,104.59,104.55,0.06291951]
[1770076817716,11.67580122,104.59,104.55,0.06291951]
[1770076818722,133.9582,104.61,104.55,0.06291951]
[1770076818723,11.98184715,104.58,104.55,0.06291951]
[1770076819611,3.36784715,104.59,104.55,3.70350056]
[1770076820020,3.36784715,104.59,104.55,0.06291951]
[1770076821618,11.98104715,104.59,104.55,0.06291951]
[1770076822523,390.3722,104.61,104.55,3.69074163]
[1770076822718,11.82438193,104.61,104.55,3.69074163]
[1770076822923,11.82288193,104.63,104.55,3.69074163]
[1770076823115,11.82288193,104.63,104.57,3.62782212]
[1770076823521,384.93218193,104.65,104.58,3.62782212]
[1770076823723,3.21218193,104.65,104.58,3.62782212]
[1770076824021,3.21218193,104.65,104.59,0.06538138]
[1770076825427,11.7668818,104.64,104.59,0.06538138]
[1770076825724,3.1594289,104.63,104.59,0.06538138]
[1770076825924,3.1594289,104.62,104.56,3.62782212]
[1770076826326,11.7708289,104.62,104.56,3.62782212]
[1770076826728,11.7708289,104.62,104.58,0.06772894]
[1770076829524,11.76440934,104.61,104.58,0.06772894]
[1770076829830,3.0851804,104.6,104.54,12.24502212]
[1770076830031,3.0851804,104.6,104.55,3.62782212]
[1770076830828,11.6974804,104.6,104.55,3.62782212]
[1770076832041,0.06746742,104.59,104.55,3.62782212]
[1770076833340,0.06746742,104.59,104.55,12.24412212]
[1770076833638,0.06746742,104.59,104.56,3.62782212]
[1770076834435,0.06746742,104.59,104.56,12.24332212]
[1770076834835,0.06746742,104.59,104.56,3.62782212]
[1770076837042,3.04745712,104.59,104.53,3.62782212]
[1770076837242,2.9799897,104.57,104.46,3.62782212]
[1770076837444,2.9799897,104.56,104.46,3.62782212]
[1770076838141,0.06431394,104.52,104.46,3.62782212]
[1770076838340,0.06431394,104.52,104.46,12.25172212]
[1770076838545,0.06431394,104.52,104.47,3.62782212]
[1770076842541,2.92585423,104.52,104.47,3.62782212]
[1770076843050,137.00305423,104.52,104.47,3.62782212]
[1770076844045,8.6207,104.5,104.47,3.62782212]
[1770076844243,137.00305423,104.52,104.47,3.62782212]
[1770076844244,2.92585423,104.52,104.47,3.62782212]
[1770076844647,2.86154029,104.52,104.47,3.62782212]
[1770076844851,8.6206,104.5,104.47,3.62782212]
[1770076845848,8.68141184,104.5,104.47,3.62782212]
[1770076846752,8.68141184,104.5,104.47,2.212e-05]
[1770076846952,8.6215,104.49,104.47,2.212e-05]
[1770076848552,0.06081184,104.5,104.47,2.212e-05]
[1770076850556,8.68151184,104.5,104.47,2.212e-05]
[1770076852452,8.68151184,104.5,104.45,3.47491433]
[1770076852453,8.6217,104.49,104.45,3.47491433]
[1770076853452,8.6226,104.48,104.45,3.47491433]
[1770076853661,3.71686893,104.48,104.38,143.8248]
[1770076853853,3.71686893,104.48,104.39,238.6]
[1770076854352,0.06837063,104.45,104.4,8.6287]
[1770076854556,8.6239,104.46,104.4,8.6287]
[1770076855257,8.6248,104.45,104.39,247.2296]
[1770076855558,8.6248,104.45,104.4,3.47491433]
[1770076856261,8.6248,104.45,104.41,3.53834858]
[1770076857254,137.85466893,104.47,104.41,3.53834858]
[1770076858057,8.6254,104.45,104.41,3.53834858]
[1770076859063,137.88006893,104.45,104.39,185.0]
[1770076859255,0.06420852,104.44,104.39,185.0]
[1770076859856,8.6274,104.42,104.39,185.0]
[1770076860259,3.71686893,104.45,104.39,185.0]
[1770076860458,8.6264,104.43,104.37,8.6306]
[1770076860858,0.0614589,104.42,104.37,8.6306]
[1770076861063,0.0614589,104.42,104.38,1.60627543]
[1770076861662,3.77832783,104.42,104.38,1.60627543]
[1770076861859,3.77832783,104.42,104.36,240.34]
[1770076862062,8.6291,104.4,104.36,240.34]
[1770076863661,12.34466893,104.42,104.36,240.34]
[1770076864063,3.71686893,104.42,104.36,240.34]
[1770076865364,8.6282,104.41,104.36,240.34]
[1770076865562,134.1814,104.44,104.36,248.9719]
[1770076866067,134.1814,104.44,104.39,0.06417354]
[1770076866264,8.6274,104.42,104.39,0.06417354]
[1770076868366,142.25088075,104.44,104.39,0.06417354]
[1770076868967,8.6279,104.42,104.39,0.06417354]
[1770076869272,8.07298075,104.43,104.39,0.06417354]
[1770076870472,8.6283,104.41,104.39,0.06417354]
[1770076872373,8.07298075,104.43,104.39,0.06417354]
[1770076879472,8.07298075,104.43,104.31,151.2]
[1770076881278,0.0638939,104.38,104.31,151.2]
[1770076881775,8.18280259,104.39,104.31,151.2]
[1770076883580,0.06173154,104.36,104.31,151.2]
[1770076893784,8.18262879,104.4,104.31,151.2]
[1770076895386,8.18262879,104.45,104.31,181.62706587]
[1770076895789,8.18262879,104.45,104.34,0.06206726]
[1770076896084,8.18262879,104.45,104.33,28.76]
[1770076896289,8.18262879,104.45,104.33,52.50634384]
[1770076896989,8.18262879,104.45,104.33,28.76]
[1770076897386,8.18262879,104.45,104.32,28.76]
[1770076897889,8.18262879,104.45,104.37,0.06104832]
[1770076898493,8.13527258,104.39,104.26,23.74634384]
[1770076898689,8.13527258,104.39,104.18,59.36585962]
[1770076898690,8.13527258,104.35,104.18,23.74634384]
[1770076898892,8.13527258,104.35,104.16,29.68292981]
[1770076898893,8.13527258,104.33,104.16,76.44]
[1770076899094,8.13527258,104.31,104.16,76.44]
[1770076899289,8.13527258,104.31,104.15,1.66906475]
[1770076899493,8.13527258,104.31,104.17,76.44]
[1770076900493,8.13527258,104.31,104.17,105.2]
[1770076900994,8.13527258,104.31,104.23,0.06304518]
[1770076901292,8.13527258,104.31,104.17,76.44]
[1770076902698,0.06414042,104.25,104.17,76.44]
[1770076903195,0.06414042,104.25,104.14,4.44883133]
[1770076903196,8.2588513,104.25,104.15,28.76]
[1770076903399,8.2588513,104.25,104.14,2.77948636]
[1770076903596,0.06381908,104.22,104.14,2.77948636]
[1770076903796,8.32267038,104.22,104.14,2.77948636]
[1770076904196,8.2588513,104.22,104.14,2.77948636]
[1770076904597,0.06180061,104.19,104.14,2.77948636]
[1770076907899,8.27064766,104.21,104.14,2.77948636]
[1770076908303,8.27064766,104.21,104.09,76.5]
[1770076910412,8.27064766,104.21,104.14,0.06242202]
[1770076911004,8.27064766,104.21,104.09,76.5]
[1770076912319,8.27064766,104.21,104.14,0.06696573]
[1770076912811,8.27064766,104.21,104.1,76.54]
[1770076913210,8.27064766,104.21,104.16,0.06353143]
[1770076915717,7.1436268,104.27,104.16,76.62353143]
[1770076916313,7.1436268,104.27,104.16,76.56]
[1770076916714,7.1436268,104.27,104.2,0.06527671]
[1770076917216,7.1436268,104.27,104.16,76.56]
[1770076917915,0.06335583,104.23,104.16,76.56]
[1770076918418,7.21764715,104.24,104.16,76.56]
[1770076919112,0.06534503,104.21,104.16,76.56]
[1770076921515,0.06534503,104.21,104.09,28.82]
[1770076921718,7.23709958,104.23,104.11,28.82]
[1770076922615,0.06421628,104.18,104.11,28.82]
[1770076922811,0.06421628,104.18,104.12,245.8]
[1770076923316,7.24534755,104.22,104.12,245.8]
[1770076923514,7.24534755,104.22,104.12,274.62]
[1770076924212,5.61720274,104.22,104.12,274.62]
[1770076924416,0.06317172,104.18,104.12,274.62]
[1770076924616,5.61720274,104.22,104.12,274.62]
[1770076925919,5.61720274,104.22,104.16,0.06265548]
[1770076934421,5.61720274,104.22,104.08,152.04]
[1770076934618,6.499844,104.19,104.08,152.04]
[1770076935826,76.58,104.22,104.08,152.04]
[1770076935827,0.06437833,104.15,104.08,152.04]
[1770076936420,76.58,104.22,104.08,152.04]
[1770076936421,6.54435031,104.21,104.08,152.04]
[1770076937127,0.06206373,104.16,104.08,152.04]
[1770076937728,6.54435031,104.19,104.08,152.04]
[1770076939418,6.54435031,104.19,104.12,0.06141428]
[1770076940019,6.54435031,104.19,104.08,152.04]
[1770076945632,6.54435031,104.19,104.08,180.86]
[1770076946035,6.54435031,104.19,104.12,0.06090637]
[1770076946624,6.54435031,104.19,104.08,180.86]
[1770076947434,6.54435031,104.19,104.12,0.06146805]
[1770076947934,6.54435031,104.19,104.08,180.86]
[1770076948336,6.54435031,104.19,104.14,0.0612382]
[1770076948930,6.54435031,104.19,104.08,152.04]
[1770076949240,6.54435031,104.19,104.06,245.0]
[1770076949433,6.57828028,104.17,104.06,245.0]
[1770076950131,6.57828028,104.17,104.06,273.82]
[1770076950436,0.06211946,104.13,104.06,273.82]
[1770076951135,6.62079228,104.16,104.06,273.82]
[1770076951339,7.62079228,104.16,104.06,273.82]
[1770076951836,0.06151162,104.12,104.06,273.82]
[1770076952028,7.62079228,104.16,104.06,273.82]
[1770076952738,1.0,104.16,104.08,28.82]
[1770076952937,1.0,104.16,104.08,52.56634384]
[1770076953138,1.0,104.16,104.09,52.56634384]
[1770076953436,1.0,104.16,104.11,0.062285]
[1770076953635,1.0,104.16,104.12,216.06]
[1770076953833,0.60720167,104.16,104.12,216.06]
[1770076954038,6.58098686,104.2,104.12,216.06]
[1770076955433,6.58098686,104.2,104.15,0.062655]
[1770076960332,6.58098686,104.2,104.15,173.282655]
[1770076965338,6.58098686,104.2,104.15,0.062655]
[1770076970847,6.58098686,104.2,104.11,188.44]
[1770076971154,6.52430707,104.18,104.11,188.44]
[1770076971351,15.17220707,104.17,104.11,197.0926]
[1770076972644,0.06419092,104.15,104.11,197.0926]
[1770076976447,0.06419092,104.15,104.11,8.6526]
[1770076978047,6.63752102,104.15,104.11,8.6526]
[1770076978248,6.63752102,104.15,104.1,255.4336]
[1770076979148,15.28712102,104.15,104.1,246.78]
[1770076979351,6.5733301,104.14,104.1,246.78]
[1770076982053,6.5733301,104.14,104.1,255.4336]
[1770076982251,0.06419092,104.15,104.1,255.4336]
[1770076983353,6.5872356,104.18,104.1,381.3926]
[1770076983648,6.5872356,104.18,104.11,134.65909381]
[1770076983857,6.5872356,104.18,104.13,8.6506]
[1770076984353,6.5872356,104.18,104.14,250.5]
[1770076984746,15.2412254,104.2,104.14,259.21292715]
[1770076987355,6.5956254,104.2,104.15,8.6494]
[1770076987544,6.5956254,104.2,104.14,250.56262715]
[1770076988056,6.5956254,104.2,104.14,250.5]
[1770076989252,8.6463,104.19,104.14,250.5]
[1770076989558,6.66482398,104.19,104.14,250.5]
[1770076990358,6.66482398,104.19,104.14,259.1504]
[1770076991163,6.66482398,104.19,104.15,8.6494]
[1770076991762,6.66482398,104.19,104.16,0.06370157]
[1770076995969,6.7309234,104.19,104.14,263.1704]
[1770076998070,15.3772234,104.19,104.14,263.1704]
[1770076998669,15.33263205,104.18,104.14,254.52]
[1770076998970,6.68543205,104.17,104.14,245.66750838]
[1770077000971,41.6472,104.18,104.14,245.66750838]
[1770077001273,0.06247475,104.17,104.14,245.66750838]
[1770077006080,8.71107475,104.17,104.14,245.66750838]
[1770077008684,0.06247475,104.17,104.14,245.66750838]
[1770077010579,6.72617808,104.17,104.09,8.6544]
[1770077010784,6.66370333,104.16,104.1,259.88]
[1770077011277,15.31320333,104.16,104.1,259.88]
[1770077012886,0.06544163,104.14,104.1,259.88]
[1770077016690,33.0,104.16,104.1,259.88]
[1770077017190,33.0,104.16,104.11,0.06076137]
[1770077017490,41.6469,104.19,104.11,0.06076137]
[1770077017690,41.6469,104.19,104.11,23.9208852]
[1770077018190,48.31295148,104.19,104.11,23.86012383]
[1770077018387,48.31295148,104.19,104.12,8.6518]
[1770077018789,6.66605148,104.18,104.12,8.6518]
[1770077019787,6.66605148,104.18,104.14,0.06675211]
[1770077020092,6.66605148,104.18,104.14,262.42675211]
[1770077021394,33.0,104.19,104.14,262.42675211]
[1770077021784,15.27407625,104.2,104.14,262.42675211]
[1770077021785,6.62867625,104.22,104.14,262.42675211]
[1770077022296,6.61819275,104.21,104.15,8.6495]
[1770077022598,6.61819275,104.21,104.14,262.36]
[1770077022897,6.61819275,104.21,104.17,0.06674916]
[1770077023792,15.26179275,104.23,104.17,0.06674916]
[1770077024493,6.56549608,104.21,104.17,0.06674916]
[1770077024988,6.56549608,104.21,104.15,8.6494]
[1770077025192,6.56549608,104.2,104.14,272.0702]
[1770077025890,6.56549608,104.2,104.16,0.06104302]
[1770077030497,15.21099608,104.2,104.16,0.06104302]
[1770077030798,6.56549608,104.2,104.16,0.06104302]
[1770077032302,6.56549608,104.2,104.16,8.70944302]
[1770077032601,6.56549608,104.2,104.16,0.06104302]
[1770077037004,39.56549608,104.2,104.16,0.06104302]
[1770077037599,33.0,104.2,104.16,0.06104302]
[1770077037802,6.46351484,104.19,104.16,0.06104302]
[1770077040198,6.4076073,104.17,104.08,158.48992383]
[1770077040401,6.4076073,104.17,104.08,134.6298]
[1770077040599,6.4076073,104.17,104.08,268.94]
[1770077040903,167.5138,104.18,104.08,268.94]
[1770077040904,6.4076073,104.15,104.09,8.6545]
[1770077041204,6.4076073,104.15,104.08,268.94]
[1770077041599,0.06288311,104.13,104.08,268.94]
[1770077042506,0.06288311,104.13,104.1,8.6537]
[1770077042905,0.06288311,104.13,104.08,277.5947]
[1770077043207,6.33481718,104.13,104.08,268.94]
[1770077044905,6.33481718,104.13,104.09,8.6543]
[1770077046606,6.33481718,104.13,104.08,268.94]
[1770077047512,6.33481718,104.13,104.06,8.6569]
[1770077047713,6.33481718,104.13,104.07,272.54]
[1770077048212,6.27193407,104.13,104.07,272.54]
[1770077049011,48.02572926,104.15,104.07,272.54]
[1770077049211,6.37622926,104.14,104.07,272.54]
[1770077050413,6.37622926,104.14,104.08,273.46]
[1770077051614,0.06083619,104.12,104.08,273.46]
[1770077051914,6.44756265,104.12,104.05,273.96]
[1770077052316,6.38672646,104.12,104.05,273.96]
[1770077052516,33.0,104.13,104.05,273.96]
[1770077053411,39.38672646,104.13,104.06,8.657]
[1770077055311,6.36763463,104.1,104.04,23.86012383]
[1770077055508,6.36763463,104.1,104.04,275.6]
[1770077055707,6.36763463,104.14,104.04,275.6]
[1770077056410,6.32483685,104.12,104.04,284.2586]
[1770077056616,6.32483685,104.12,104.04,275.6]
[1770077057709,14.97533685,104.14,104.06,8.657]
[1770077057914,6.32695246,104.17,104.05,163.4966]
[1770077058220,6.32695246,104.17,104.05,28.82]
[1770077058413,6.32695246,104.14,104.06,8.6563]
[1770077058918,6.32695246,104.13,104.05,8.6578]
[1770077059112,6.32695246,104.13,104.04,275.6]
[1770077060014,6.32695246,104.13,104.04,304.42]
[1770077060215,0.06051683,104.1,104.04,304.42]
[1770077060815,0.06051683,104.1,104.06,8.657]
[1770077061220,6.32695246,104.13,104.06,0.06449562]
[1770077061917,6.32695246,104.13,104.05,163.4971]
[1770077062820,6.32695246,104.13,104.07,8.6555]
[1770077063020,6.32695246,104.13,104.08,277.565967]
[1770077063624,6.32695246,104.13,104.08,286.221267]
[1770077066221,47.97233826,104.16,104.09,8.654]
[1770077066417,6.32353826,104.14,104.08,277.565967]
[1770077066625,33.0,104.15,104.08,277.565967]
[1770077066815,33.0,104.15,104.08,277.5]
[1770077067120,39.32353826,104.15,104.08,277.5]
[1770077067325,6.32353826,104.14,104.08,277.5]
[1770077068421,14.97393826,104.14,104.08,286.1553]
[1770077068625,6.32024725,104.13,104.08,286.1553]
[1770077068921,6.32024725,104.13,104.1,0.06154599]
[1770077070738,39.32734271,104.15,104.1,0.06154599]
[1770077070928,6.32734271,104.14,104.1,0.06154599]
[1770077073520,6.3147541,104.13,104.07,8.6555]
[1770077074329,6.28611925,104.12,104.07,8.6555]
[1770077075827,6.28611925,104.12,104.06,290.6569]
[1770077076329,6.28611925,104.12,104.07,8.6562]
[1770077079829,6.37327082,104.11,104.07,8.6562]
[1770077081529,39.32207443,104.13,104.08,8.6552]
[1770077081729,39.32207443,104.13,104.08,8.72328667]
[1770077083428,6.32270545,104.12,104.08,0.06808667]
[1770077086840,6.32270545,104.12,104.08,8.72318667]
[1770077095240,6.32270545,104.12,104.08,0.06808667]
[1770077096839,6.47801057,104.1,104.05,292.62]
[1770077097239,6.47801057,104.1,104.05,301.2778]
[1770077098340,0.06622641,104.09,104.05,301.2778]
[1770077098942,6.54373956,104.09,104.03,8.6594]
[1770077099346,6.47751315,104.09,104.04,293.64]
[1770077100347,6.47751315,104.09,104.04,302.2987]
[1770077100646,167.5792,104.13,104.05,294.36]
[1770077100647,0.06259083,104.08,104.05,294.36]
[1770077100848,6.48537359,104.11,104.05,294.36]
[1770077101647,6.48537359,104.11,104.05,303.0174]
[1770077101852,6.48537359,104.11,104.06,294.94]
[1770077102645,6.48537359,104.11,104.07,0.06285644]
[1770077103950,6.45419164,104.13,104.07,0.06285644]
[1770077104148,6.45419164,104.12,104.07,0.06285644]
[1770077104449,6.45419164,104.12,104.06,294.94]
[1770077104850,6.45419164,104.12,104.08,0.06072622]
[1770077105846,15.10629164,104.12,104.08,0.06072622]
[1770077106046,6.42786223,104.11,104.06,294.94]
[1770077106250,6.42786223,104.1,104.06,294.94]
[1770077106653,6.42786223,104.1,104.03,8.6587]
[1770077106858,6.42786223,104.1,104.03,248.96]
[1770077107354,6.42786223,104.08,104.03,248.96]
[1770077107553,6.49270786,104.08,104.03,248.96]
[1770077108058,6.45224179,104.07,103.99,134.7462]
[1770077108449,6.45224179,104.07,104.0,297.6]
[1770077108950,6.45224179,104.07,104.01,8.6612]
[1770077108951,6.45224179,104.06,104.01,8.6612]
[1770077110650,0.06478974,104.05,104.01,8.6612]
[1770077112759,0.06478974,104.05,104.0,297.6]
[1770077113466,6.47360906,104.1,104.01,329.42]
[1770077113662,6.47360906,104.1,104.01,329.48118746]
[1770077114163,6.49279095,104.12,104.03,37.4794]
[1770077114363,6.49279095,104.12,104.04,264.66]
[1770077114857,6.49279095,104.1,104.04,264.66]
[1770077115160,6.49279095,104.1,104.07,0.06417734]
[1770077115753,6.49279095,104.1,104.07,0.00158651]
[1770077115754,15.14659095,104.1,104.07,0.00158651]
[1770077116160,15.21027944,104.1,104.07,0.00158651]
[1770077116759,6.4805515,104.09,104.07,0.00158651]
[1770077118163,6.4805515,104.09,103.99,134.7552]
[1770077118360,6.4805515,104.09,104.0,301.82]
[1770077118757,6.45962141,104.08,104.0,301.82]
[1770077119567,0.06488136,104.05,104.0,301.82]
[1770077120362,0.06488136,104.05,104.01,8.6609]
[1770077122657,0.06488136,104.05,104.0,8.6619]
[1770077122857,0.06488136,104.05,104.01,303.68]
[1770077123671,0.06488136,104.05,104.01,312.3411]
[1770077125574,0.06488136,104.05,104.01,303.68]
[1770077126872,0.06488136,104.05,104.01,312.341]
[1770077127774,0.06488136,104.05,104.01,314.721]
[1770077128368,6.52969121,104.05,104.01,314.721]
[1770077128872,6.52969121,104.05,104.01,306.06]
[1770077129270,15.18759121,104.05,103.99,315.4624]
[1770077129473,33.0,104.04,103.98,31.28391764]
[1770077129871,33.0,104.03,103.96,306.98]
[1770077130076,33.0,104.02,103.97,31.26797148]
[1770077130375,33.0609085,104.02,103.97,31.26797148]
[1770077131476,33.0609085,104.02,103.97,39.93187148]
[1770077133373,0.0609085,104.02,103.95,340.94658246]
[1770077133574,0.0609085,104.02,103.96,31.86658246]
[1770077133974,134.6816,104.05,103.96,31.86658246]
[1770077134472,8.6603,104.03,103.96,40.53188246]
[1770077134674,0.06280661,104.02,103.96,40.53188246]
[1770077135067,0.06280661,104.02,103.97,31.98192425]
[1770077135274,134.655,104.07,103.98,31.98192425]
[1770077135473,134.6399,104.08,103.99,31.98192425]
[1770077135672,8.6571,104.06,103.99,31.98192425]
[1770077136676,8.658,104.05,104.01,0.06408326]
[1770077137271,8.658,104.05,103.99,342.16192425]
[1770077137579,8.658,104.05,104.02,0.06345407]
[1770077137980,518.1175,104.09,104.02,0.06345407]
[1770077138277,33.0,104.08,104.02,0.06345407]
[1770077138467,33.0,104.08,104.0,32.00728954]
[1770077138874,8.6563,104.07,104.0,32.00728954]
[1770077139775,8.6563,104.07,104.02,0.06309367]
[1770077143479,41.6555,104.08,104.02,32.04929919]
[1770077145281,41.6563,104.07,104.02,32.04929919]
[1770077145883,41.6563,104.07,104.02,31.98620552]
[1770077146186,41.6563,104.07,104.03,0.06491297]
[1770077146991,8.6553,104.09,104.03,32.01551279]
[1770077147183,33.0,104.1,104.03,32.01551279]
[1770077147582,33.0,104.1,104.03,31.95059982]
[1770077148188,8.6554,104.08,104.03,31.95059982]
[1770077148387,8.6554,104.08,104.05,0.0647969]
[1770077148691,33.0,104.1,104.05,0.0647969]
[1770077149391,8.6546,104.09,104.05,0.0647969]
[1770077149883,33.0,104.1,104.05,32.0404913]
[1770077150678,41.6541,104.1,104.05,32.0404913]
[1770077151189,33.0,104.1,104.05,0.0647969]
[1770077152386,8.6547,104.09,104.05,0.0647969]
[1770077154187,33.0,104.08,104.05,0.0647969]
[1770077154390,33.0,104.07,104.01,31.73138322]
[1770077154584,33.0,104.06,104.01,31.73138322]
[1770077156490,0.06124945,104.05,104.01,31.73138322]
[1770077158694,0.06124945,104.05,104.01,40.39238322]
[1770077158897,0.06124945,104.05,104.02,31.51516769]
[1770077159898,0.06124945,104.05,104.02,40.17546769]
[1770077160200,0.06124945,104.05,103.99,134.7555]
[1770077160201,0.69524945,104.08,104.03,31.50698411]
[1770077160496,0.69524945,104.11,104.04,31.50698411]
[1770077162396,9.34834945,104.11,104.05,31.51964003]
[1770077163897,8.6538,104.1,104.05,31.51964003]
[1770077164293,0.69524945,104.11,104.03,31.52153255]
[1770077164696,8.6546,104.09,104.03,31.52153255]
[1770077165300,8.6546,104.09,104.03,40.18093255]
[1770077165900,0.69524945,104.08,104.03,40.18093255]
[1770077166600,0.69524945,104.07,104.03,31.52153255]
[1770077166798,0.69524945,104.07,104.01,31.51608565]
[1770077168299,9.35164945,104.07,104.01,31.51608565]
[1770077171503,8.6571,104.06,104.01,31.51608565]
[1770077172202,8.6582,104.05,104.01,31.51608565]
[1770077172404,8.6582,104.05,104.02,0.06055324]
[1770077176703,8.6572,104.06,104.02,31.55299581]
[1770077177699,9.35244945,104.06,104.02,31.55299581]
[1770077180103,0.2914512,104.06,104.02,31.55299581]
[1770077180802,8.6563,104.07,104.02,31.55299581]
[1770077181002,8.6554,104.08,104.02,31.55299581]
[1770077181208,134.6017,104.11,104.02,31.55299581]
[1770077181504,16.0,104.1,104.02,31.49244257]
[1770077181704,8.6546,104.09,104.02,40.15274257]
[1770077181896,16.0,104.1,104.06,31.38233816]
[1770077182706,24.6537,104.1,104.06,31.38233816]
[1770077182905,16.0,104.1,104.06,31.38233816]
[1770077184010,8.6519,104.13,104.06,31.38233816]
[1770077184205,8.6507,104.14,104.06,31.38233816]
[1770077184403,150.5522,104.15,104.06,31.38233816]
[1770077185108,8.6513,104.13,104.06,31.38233816]
[1770077187213,134.5885,104.12,104.04,31.35726601]
[1770077187805,8.6538,104.1,104.04,31.35726601]
[1770077188908,8.6538,104.1,104.06,0.06125451]
[1770077189410,8.6529,104.11,104.06,0.06125451]
[1770077190014,8.6537,104.1,104.06,0.06125451]
[1770077191712,8.6546,104.09,104.02,171.54930179]
[1770077191913,8.7190039,104.09,104.03,31.32900179]
[1770077192310,8.6546,104.09,104.03,31.32900179]
[1770077192615,8.6554,104.08,104.01,31.32681066]
[1770077192818,134.6321,104.09,104.01,31.32681066]
[1770077193113,0.06061245,104.06,104.01,31.32681066]
[1770077194410,8.71761245,104.06,104.01,31.32681066]
[1770077197714,8.658,104.05,104.01,31.32681066]
[1770077198415,8.6588,104.04,104.01,31.32681066]
[1770077199318,8.72008039,104.04,104.01,31.32681066]
[1770077199717,8.6597,104.03,103.98,273.98]
[1770077200017,134.76128039,104.04,103.95,311.92]
[1770077200217,134.7,104.04,103.95,311.92]
[1770077200607,0.06169035,104.01,103.95,311.92]
[1770077201316,8.72309035,104.01,103.95,311.92]
[1770077201716,8.72309035,104.01,103.96,23.78005851]
[1770077206820,0.06169035,104.01,103.96,23.78005851]
[1770077214725,0.06169035,104.01,103.96,32.44525851]
[1770077215325,0.06169035,104.01,103.97,23.73836418]
[1770077220830,24.72289035,104.01,103.95,344.29895771]
[1770077221033,16.0,104.0,103.95,23.71295771]
[1770077221631,8.663,103.99,103.95,23.71295771]
[1770077222424,8.72872377,103.98,103.93,283.00537914]
[1770077222629,0.06472377,103.98,103.92,2.77948636]
[1770077222834,134.7971,103.96,103.89,23.72537914]
[1770077223028,134.7869,103.97,103.89,23.72537914]
[1770077223627,8.6662,103.95,103.89,32.39657914]
[1770077223832,0.06080161,103.94,103.9,23.72537914]
[1770077226024,150.7584,103.99,103.91,23.67459089]
[1770077226629,8.6645,103.97,103.91,23.67459089]
[1770077227132,150.7584,103.99,103.91,23.67459089]
[1770077227133,16.0,103.99,103.91,23.67459089]
[1770077227334,8.6637,103.98,103.91,23.67459089]
[1770077228224,8.6646,103.97,103.91,23.67459089]
[1770077229229,24.6654,103.96,103.91,23.67459089]
[1770077230029,8.6662,103.95,103.91,23.67459089]
[1770077230627,8.6662,103.95,103.91,7.30904379]
[1770077230831,8.6672,103.94,103.87,76.74]
[1770077232734,8.6672,103.94,103.88,15.4691748]
[1770077235339,8.6679,103.93,103.88,15.4691748]
[1770077236129,8.6679,103.93,103.89,15.52042401]
[1770077236738,16.0,103.95,103.89,15.52042401]
[1770077240443,24.6663,103.95,103.89,15.52042401]
[1770077242141,16.0,103.94,103.89,15.52042401]